[Event "Early-Titled-Tuesday-Blitz-October-10-2023"]
[Site "Chess.com"]
[Date "2023.10.10"]
[Round "11"]
[White "Lion-Al-Messi"]
[Black "Barmen_EV"]
[Result "1-0"]
[WhiteElo "2635"]
[BlackElo "2509"]
[TimeControl "180+1"]
[EndTime "10:05:57 PDT"]
[Termination "Lion-Al-Messi won by checkmate"]

1. e4 {[%clk 0:03:00.9]} 1... c5 {[%clk 0:02:57.5]} 2. Nf3 {[%clk 0:03:00.3]}
2... Nc6 {[%clk 0:02:57.1]} 3. d4 {[%clk 0:03:00.3]} 3... cxd4 {[%clk 0:02:58]}
4. Nxd4 {[%clk 0:03:01.1]} 4... e5 {[%clk 0:02:58.6]} 5. Nb5 {[%clk 0:03:00.6]}
5... d6 {[%clk 0:02:59.2]} 6. c4 {[%clk 0:03:00.9]} 6... a6 {[%clk 0:02:59.2]}
7. N5c3 {[%clk 0:02:57.3]} 7... Be6 {[%clk 0:02:59.5]} 8. Nd5 {[%clk 0:02:56.8]}
8... Nf6 {[%clk 0:02:59.7]} 9. Nbc3 {[%clk 0:02:56.3]} 9... Be7 {[%clk
0:02:59.9]} 10. Be2 {[%clk 0:02:55.8]} 10... O-O {[%clk 0:03:00.4]} 11. O-O
{[%clk 0:02:56]} 11... Rc8 {[%clk 0:02:59.8]} 12. Be3 {[%clk 0:02:55.9]} 12...
Nd7 {[%clk 0:02:59]} 13. Qd2 {[%clk 0:02:54.6]} 13... f5 {[%clk 0:02:50.9]} 14.
exf5 {[%clk 0:02:53.2]} 14... Bxf5 {[%clk 0:02:51.8]} 15. Rad1 {[%clk
0:02:53.1]} 15... Bf6 {[%clk 0:01:56.5]} 16. Nxf6+ {[%clk 0:02:42.4]} 16... Nxf6
{[%clk 0:01:47.1]} 17. Qxd6 {[%clk 0:02:42]} 17... Qa5 {[%clk 0:01:41.4]} 18.
Qc5 {[%clk 0:01:46.2]} 18... Qxc5 {[%clk 0:01:30]} 19. Bxc5 {[%clk 0:01:47.1]}
19... Rfd8 {[%clk 0:01:30.6]} 20. Bb6 {[%clk 0:01:45.4]} 20... Rxd1 {[%clk
0:01:29.3]} 21. Rxd1 {[%clk 0:01:46.3]} 21... Ne7 {[%clk 0:01:17.2]} 22. Rd8+
{[%clk 0:01:45.1]} 22... Rxd8 {[%clk 0:01:17]} 23. Bxd8 {[%clk 0:01:46]} 23...
Kf7 {[%clk 0:01:13.1]} 24. c5 {[%clk 0:01:35.5]} 24... Be6 {[%clk 0:01:09.6]}
25. Bc7 {[%clk 0:01:24.4]} 25... Nc6 {[%clk 0:01:09.3]} 26. Bf3 {[%clk
0:01:12.8]} 26... Nd7 {[%clk 0:00:58.2]} 27. Ne4 {[%clk 0:01:03.3]} 27... Bxa2
{[%clk 0:00:41.2]} 28. Nd6+ {[%clk 0:00:59.7]} 28... Ke6 {[%clk 0:00:41.8]} 29.
Nxb7 {[%clk 0:00:59.5]} 29... Nd4 {[%clk 0:00:42.4]} 30. Bg4+ {[%clk 0:00:55.9]}
30... Ke7 {[%clk 0:00:37.3]} 31. Bxd7 {[%clk 0:00:43.1]} 31... Kxd7 {[%clk
0:00:36.4]} 32. Bxe5 {[%clk 0:00:43.8]} 32... Ne6 {[%clk 0:00:25.4]} 33. b4
{[%clk 0:00:39.5]} 33... Kc6 {[%clk 0:00:25.5]} 34. Na5+ {[%clk 0:00:39.2]}
34... Kb5 {[%clk 0:00:22.6]} 35. c6 {[%clk 0:00:38.9]} 35... Ng5 {[%clk
0:00:05.2]} 36. c7 {[%clk 0:00:33.1]} 36... Be6 {[%clk 0:00:05.6]} 37. Nb7
{[%clk 0:00:26.4]} 37... Nf7 {[%clk 0:00:05.5]} 38. Nd8 {[%clk 0:00:19.2]} 38...
Bd7 {[%clk 0:00:01.6]} 39. Nxf7 {[%clk 0:00:18.7]} 39... Kxb4 {[%clk 0:00:02.5]}
40. Nd6 {[%clk 0:00:15.6]} 40... a5 {[%clk 0:00:02.9]} 41. c8=Q {[%clk
0:00:15.8]} 41... Bxc8 {[%clk 0:00:03.6]} 42. Nxc8 {[%clk 0:00:16.6]} 42... a4
{[%clk 0:00:04.5]} 43. Bxg7 {[%clk 0:00:14.5]} 43... Kb3 {[%clk 0:00:04.7]} 44.
h4 {[%clk 0:00:14.2]} 44... a3 {[%clk 0:00:05.6]} 45. h5 {[%clk 0:00:14.4]}
45... a2 {[%clk 0:00:06.5]} 46. h6 {[%clk 0:00:14.8]} 46... Kc4 {[%clk
0:00:06.5]} 47. Ne7 {[%clk 0:00:12.2]} 47... Kc5 {[%clk 0:00:06.5]} 48. Ba1
{[%clk 0:00:11]} 48... Kd6 {[%clk 0:00:07.4]} 49. Nf5+ {[%clk 0:00:10.8]} 49...
Ke6 {[%clk 0:00:08.3]} 50. g4 {[%clk 0:00:11]} 50... Kf7 {[%clk 0:00:09.2]} 51.
f4 {[%clk 0:00:11.1]} 51... Kg6 {[%clk 0:00:10.1]} 52. Kg2 {[%clk 0:00:11]}
52... Kf7 {[%clk 0:00:10.2]} 53. Kg3 {[%clk 0:00:11.6]} 53... Kg6 {[%clk
0:00:11.1]} 54. Kh4 {[%clk 0:00:11.8]} 54... Kf7 {[%clk 0:00:11.7]} 55. Kg5
{[%clk 0:00:12.2]} 55... Kg8 {[%clk 0:00:11.2]} 56. Kf6 {[%clk 0:00:11.8]} 56...
Kf8 {[%clk 0:00:12.1]} 57. Ne7 {[%clk 0:00:11.5]} 57... Ke8 {[%clk 0:00:12.6]}
58. Ng6 {[%clk 0:00:10.9]} 58... Kd7 {[%clk 0:00:11.6]} 59. Kg7 {[%clk
0:00:10.8]} 59... Ke8 {[%clk 0:00:11.9]} 60. Kxh7 {[%clk 0:00:10]} 60... Kf7
{[%clk 0:00:12.8]} 61. Ne5+ {[%clk 0:00:09.8]} 61... Kf8 {[%clk 0:00:12.9]} 62.
Kg6 {[%clk 0:00:09.8]} 62... Ke8 {[%clk 0:00:09.9]} 63. h7 {[%clk 0:00:09.7]}
63... Ke7 {[%clk 0:00:10.8]} 64. h8=Q {[%clk 0:00:09.5]} 64... Kd6 {[%clk
0:00:11.7]} 65. Qd8+ {[%clk 0:00:09.3]} 65... Kc5 {[%clk 0:00:11.4]} 66. Nd3+
{[%clk 0:00:09.4]} 66... Kc4 {[%clk 0:00:11.9]} 67. Qd4+ {[%clk 0:00:09.3]}
67... Kb3 {[%clk 0:00:12.8]} 68. Qc3+ {[%clk 0:00:08.4]} 68... Ka4 {[%clk
0:00:13.2]} 69. Qb4# {[%clk 0:00:09.3]} 1-0

[Event "Early-Titled-Tuesday-Blitz-October-10-2023"]
[Site "Chess.com"]
[Date "2023.10.10"]
[Round "11"]
[White "TregubovP"]
[Black "c63_amg"]
[Result "0-1"]
[WhiteElo "2593"]
[BlackElo "2792"]
[TimeControl "180+1"]
[EndTime "10:06:05 PDT"]
[Termination "c63_amg won on time"]

1. e4 {[%clk 0:03:00.9]} 1... c5 {[%clk 0:02:57.3]} 2. Nf3 {[%clk 0:03:00.7]}
2... d6 {[%clk 0:02:55]} 3. Bb5+ {[%clk 0:03:01]} 3... Nd7 {[%clk 0:02:54.9]} 4.
Ba4 {[%clk 0:03:01.3]} 4... Nf6 {[%clk 0:02:54.4]} 5. O-O {[%clk 0:03:01.4]}
5... g6 {[%clk 0:02:53.9]} 6. Re1 {[%clk 0:03:01.3]} 6... Bg7 {[%clk 0:02:54.4]}
7. c3 {[%clk 0:03:01.7]} 7... O-O {[%clk 0:02:54.8]} 8. d4 {[%clk 0:03:00.8]}
8... cxd4 {[%clk 0:02:51.1]} 9. cxd4 {[%clk 0:03:00.9]} 9... a6 {[%clk
0:02:50.9]} 10. Bb3 {[%clk 0:02:55.4]} 10... e5 {[%clk 0:02:36.3]} 11. dxe5
{[%clk 0:02:42.3]} 11... dxe5 {[%clk 0:02:31.4]} 12. Nc3 {[%clk 0:02:41.5]}
12... b5 {[%clk 0:02:18.2]} 13. Bg5 {[%clk 0:02:29.9]} 13... Bb7 {[%clk
0:02:15]} 14. Bd5 {[%clk 0:02:16.8]} 14... Bxd5 {[%clk 0:01:39.4]} 15. Nxd5
{[%clk 0:02:16.1]} 15... h6 {[%clk 0:01:40]} 16. Bxf6 {[%clk 0:01:46.3]} 16...
Nxf6 {[%clk 0:01:40.9]} 17. Nxe5 {[%clk 0:01:36.5]} 17... Nxd5 {[%clk
0:01:22.5]} 18. Qxd5 {[%clk 0:01:14.2]} 18... Qg5 {[%clk 0:01:11.3]} 19. f4
{[%clk 0:01:01.3]} 19... Qh5 {[%clk 0:00:47.1]} 20. Nc6 {[%clk 0:00:38.6]} 20...
Qg4 {[%clk 0:00:43.8]} 21. f5 {[%clk 0:00:29.9]} 21... Kh7 {[%clk 0:00:20.4]}
22. h3 {[%clk 0:00:26.1]} 22... Qf4 {[%clk 0:00:17.7]} 23. Re2 {[%clk
0:00:22.3]} 23... Rae8 {[%clk 0:00:16.5]} 24. Rf1 {[%clk 0:00:22.1]} 24... Qg5
{[%clk 0:00:11.6]} 25. Qd3 {[%clk 0:00:13.4]} 25... Qf6 {[%clk 0:00:09.2]} 26.
Nb4 {[%clk 0:00:12.1]} 26... Qd4+ {[%clk 0:00:04.3]} 27. Qxd4 {[%clk 0:00:11.9]}
27... Bxd4+ {[%clk 0:00:04.9]} 28. Kh1 {[%clk 0:00:12.1]} 28... gxf5 {[%clk
0:00:05.8]} 29. Rxf5 {[%clk 0:00:11.6]} 29... Rc8 {[%clk 0:00:06.4]} 30. Nxa6
{[%clk 0:00:07.9]} 30... Rc1+ {[%clk 0:00:06.4]} 31. Kh2 {[%clk 0:00:08.3]}
31... Rg8 {[%clk 0:00:07]} 32. g4 {[%clk 0:00:08.2]} 32... Rgc8 {[%clk
0:00:06.1]} 33. Rxf7+ {[%clk 0:00:07.8]} 33... Kg6 {[%clk 0:00:06.5]} 34. Rf3
{[%clk 0:00:06.6]} 34... Be5+ {[%clk 0:00:06.2]} 35. Kg2 {[%clk 0:00:06.6]}
35... Rb1 {[%clk 0:00:07.1]} 36. Nb4 {[%clk 0:00:05.1]} 36... Rcc1 {[%clk
0:00:07.4]} 37. Nd5 {[%clk 0:00:05.3]} 37... Rg1+ {[%clk 0:00:07.7]} 38. Kf2
{[%clk 0:00:05.8]} 38... Bd4+ {[%clk 0:00:08.2]} 39. Ree3 {[%clk 0:00:03.3]}
39... Rbf1+ {[%clk 0:00:08.6]} 40. Ke2 {[%clk 0:00:03.6]} 40... Re1+ {[%clk
0:00:07.9]} 41. Kd3 {[%clk 0:00:03.7]} 41... Bxe3 {[%clk 0:00:08.4]} 42. Nxe3
{[%clk 0:00:03.2]} 42... Rb1 {[%clk 0:00:08.5]} 43. b3 {[%clk 0:00:02.6]} 43...
Rb2 {[%clk 0:00:08.7]} 44. Rf5 {[%clk 0:00:02.7]} 44... Rg3 {[%clk 0:00:06.6]}
45. Rxb5 {[%clk 0:00:02.3]} 45... Rxh3 {[%clk 0:00:07.3]} 46. Kd4 {[%clk
0:00:02.5]} 46... Rd2+ {[%clk 0:00:06.9]} 47. Kc3 {[%clk 0:00:03]} 47... Re2
{[%clk 0:00:07.5]} 48. Rb6+ {[%clk 0:00:02.2]} 48... Kg5 {[%clk 0:00:08.1]} 49.
Rb5+ {[%clk 0:00:02.5]} 49... Kg6 {[%clk 0:00:06.7]} 50. Rb6+ {[%clk 0:00:02.5]}
50... Kf7 {[%clk 0:00:07.5]} 51. Kd4 {[%clk 0:00:01.7]} 51... Rexe3 {[%clk
0:00:07.3]} 52. Ke5 {[%clk 0:00:02.6]} 52... Rd3 {[%clk 0:00:07.7]} 53. Rb7+
{[%clk 0:00:02.6]} 53... Kg6 {[%clk 0:00:08.6]} 54. Rb6+ {[%clk 0:00:02.6]}
54... Kg5 {[%clk 0:00:09.5]} 55. Rb8 {[%clk 0:00:02.7]} 55... Rhe3 {[%clk
0:00:09.7]} 56. Rg8+ {[%clk 0:00:03.3]} 56... Kh4 {[%clk 0:00:10.4]} 57. Rg6
{[%clk 0:00:03.4]} 57... Rd2 {[%clk 0:00:09.3]} 58. Rxh6+ {[%clk 0:00:03.7]}
58... Kxg4 {[%clk 0:00:10]} 59. Rg6+ {[%clk 0:00:03.8]} 59... Kh5 {[%clk
0:00:10.7]} 60. Rg8 {[%clk 0:00:03.5]} 60... Rxa2 {[%clk 0:00:11.1]} 61. b4
{[%clk 0:00:03.1]} 61... Rb2 {[%clk 0:00:11.2]} 62. Rb8 {[%clk 0:00:03.1]} 62...
Rbe2 {[%clk 0:00:10.8]} 63. b5 {[%clk 0:00:02.6]} 63... Rxe4+ {[%clk 0:00:10.8]}
64. Kd5 {[%clk 0:00:03.3]} 64... Re5+ {[%clk 0:00:11.3]} 65. Kc6 {[%clk
0:00:03.6]} 65... Rc2+ {[%clk 0:00:11.6]} 66. Kb6 {[%clk 0:00:03.1]} 66... Re6+
{[%clk 0:00:11.9]} 67. Ka7 {[%clk 0:00:01.2]} 67... Ra2+ {[%clk 0:00:11.8]} 68.
Kb7 {[%clk 0:00:01.2]} 68... Re7+ {[%clk 0:00:12.4]} 69. Kc6 {[%clk 0:00:01.1]}
69... Rc2+ {[%clk 0:00:11.6]} 70. Kd6 {[%clk 0:00:01.5]} 70... Rg7 {[%clk
0:00:11]} 71. b6 {[%clk 0:00:01.9]} 71... Rg6+ {[%clk 0:00:11.6]} 72. Kd7 {[%clk
0:00:02.1]} 72... Rf2 {[%clk 0:00:11.3]} 73. b7 {[%clk 0:00:01.9]} 73... Rf7+
{[%clk 0:00:11.9]} 74. Ke8 {[%clk 0:00:02]} 74... Rg8+ {[%clk 0:00:12.1]} 75.
Kxf7 {[%clk 0:00:02.3]} 75... Rxb8 {[%clk 0:00:12.7]} 0-1

[Event "Early-Titled-Tuesday-Blitz-October-10-2023"]
[Site "Chess.com"]
[Date "2023.10.10"]
[Round "11"]
[White "KatakuriDono"]
[Black "Ural_bogatyr"]
[Result "1-0"]
[WhiteElo "2364"]
[BlackElo "2517"]
[TimeControl "180+1"]
[EndTime "10:06:07 PDT"]
[Termination "KatakuriDono won on time"]

1. d4 {[%clk 0:03:00.9]} 1... Nf6 {[%clk 0:02:58.4]} 2. c4 {[%clk 0:03:01.1]}
2... e6 {[%clk 0:02:58.2]} 3. Nf3 {[%clk 0:03:00.7]} 3... d5 {[%clk 0:02:58]} 4.
g3 {[%clk 0:03:00.8]} 4... dxc4 {[%clk 0:02:56.3]} 5. Bg2 {[%clk 0:03:00.1]}
5... Nbd7 {[%clk 0:02:56.3]} 6. O-O {[%clk 0:02:56.7]} 6... c6 {[%clk 0:02:56]}
7. Qc2 {[%clk 0:02:54.9]} 7... b5 {[%clk 0:02:34.3]} 8. a4 {[%clk 0:02:54.3]}
8... Bb7 {[%clk 0:02:29.4]} 9. Nc3 {[%clk 0:02:42]} 9... a6 {[%clk 0:02:27.5]}
10. Rd1 {[%clk 0:02:36.4]} 10... Be7 {[%clk 0:02:23.3]} 11. Ne5 {[%clk
0:02:34.1]} 11... Qb6 {[%clk 0:02:20.4]} 12. a5 {[%clk 0:02:21.3]} 12... Qc7
{[%clk 0:02:15.4]} 13. Bf4 {[%clk 0:02:19.8]} 13... Bd6 {[%clk 0:02:13.1]} 14.
Ne4 {[%clk 0:01:58.7]} 14... Nxe4 {[%clk 0:02:06]} 15. Qxe4 {[%clk 0:01:56.7]}
15... Nxe5 {[%clk 0:01:51.3]} 16. dxe5 {[%clk 0:01:53.4]} 16... Bc5 {[%clk
0:01:41.7]} 17. Rd2 {[%clk 0:01:31.9]} 17... O-O {[%clk 0:01:40.6]} 18. Rad1
{[%clk 0:01:31.5]} 18... Rfd8 {[%clk 0:01:38.5]} 19. Bg5 {[%clk 0:01:23.1]}
19... Be7 {[%clk 0:01:38.1]} 20. Bxe7 {[%clk 0:01:20.9]} 20... Qxe7 {[%clk
0:01:39]} 21. Qc2 {[%clk 0:01:19.5]} 21... Qc7 {[%clk 0:01:37.4]} 22. f4 {[%clk
0:01:15.4]} 22... Qxa5 {[%clk 0:01:29.8]} 23. Rd6 {[%clk 0:01:07.9]} 23... Rxd6
{[%clk 0:01:26.9]} 24. exd6 {[%clk 0:01:07.9]} 24... Rd8 {[%clk 0:01:24.9]} 25.
e4 {[%clk 0:01:04.6]} 25... c5 {[%clk 0:01:24.6]} 26. e5 {[%clk 0:01:02.1]}
26... Bxg2 {[%clk 0:01:23.8]} 27. Qxg2 {[%clk 0:01:02.4]} 27... Qb6 {[%clk
0:01:19.9]} 28. Qe4 {[%clk 0:00:59.4]} 28... h6 {[%clk 0:01:16.8]} 29. h4 {[%clk
0:00:56.7]} 29... a5 {[%clk 0:01:10.6]} 30. Kh2 {[%clk 0:00:55.7]} 30... a4
{[%clk 0:01:09.8]} 31. f5 {[%clk 0:00:56.1]} 31... exf5 {[%clk 0:01:06.5]} 32.
Qxf5 {[%clk 0:00:55.8]} 32... b4 {[%clk 0:01:06.4]} 33. Rf1 {[%clk 0:00:54.4]}
33... Qb7 {[%clk 0:01:04.1]} 34. e6 {[%clk 0:00:50.5]} 34... fxe6 {[%clk
0:01:00.5]} 35. Qxe6+ {[%clk 0:00:50.6]} 35... Kh8 {[%clk 0:01:01]} 36. Rf7
{[%clk 0:00:49.5]} 36... Qc6 {[%clk 0:00:43.7]} 37. Qe7 {[%clk 0:00:42.5]} 37...
Rg8 {[%clk 0:00:42.2]} 38. d7 {[%clk 0:00:42.3]} 38... Qd5 {[%clk 0:00:34.8]}
39. Rf8 {[%clk 0:00:34.5]} 39... Qd2+ {[%clk 0:00:24.2]} 40. Kh3 {[%clk
0:00:34.8]} 40... Qxd7+ {[%clk 0:00:24.1]} 41. Qxd7 {[%clk 0:00:34.2]} 41...
Rxf8 {[%clk 0:00:25]} 42. Qd6 {[%clk 0:00:32]} 42... Rc8 {[%clk 0:00:20.1]} 43.
Qa6 {[%clk 0:00:31.1]} 43... Rb8 {[%clk 0:00:17.6]} 44. Qxc4 {[%clk 0:00:30.2]}
44... a3 {[%clk 0:00:12.7]} 45. bxa3 {[%clk 0:00:30.3]} 45... b3 {[%clk
0:00:10.2]} 46. Qf4 {[%clk 0:00:24.6]} 46... Ra8 {[%clk 0:00:09]} 47. Qe4 {[%clk
0:00:20.3]} 47... Rxa3 {[%clk 0:00:05.2]} 48. Qb7 {[%clk 0:00:18.5]} 48... c4
{[%clk 0:00:03.8]} 49. Qc8+ {[%clk 0:00:18.5]} 49... Kh7 {[%clk 0:00:03.3]} 50.
Qxc4 {[%clk 0:00:18]} 50... b2 {[%clk 0:00:01.6]} 51. Qe4+ {[%clk 0:00:18.1]}
51... Kh8 {[%clk 0:00:01.3]} 52. Qe8+ {[%clk 0:00:17.8]} 52... Kh7 {[%clk
0:00:01.7]} 53. Qe4+ {[%clk 0:00:17.1]} 53... Kh8 {[%clk 0:00:02.1]} 54. h5
{[%clk 0:00:16.6]} 54... Rb3 {[%clk 0:00:01.8]} 55. Qe8+ {[%clk 0:00:15.1]}
55... Kh7 {[%clk 0:00:02.2]} 56. Qe4+ {[%clk 0:00:14.7]} 56... Kh8 {[%clk
0:00:02.6]} 57. Qe8+ {[%clk 0:00:13.5]} 57... Kh7 {[%clk 0:00:03]} 58. Qg6+
{[%clk 0:00:13.8]} 58... Kh8 {[%clk 0:00:03.3]} 59. Qb1 {[%clk 0:00:13.6]} 59...
Rb8 {[%clk 0:00:02.8]} 60. Kg2 {[%clk 0:00:12.7]} 60... Rb5 {[%clk 0:00:02.7]}
61. g4 {[%clk 0:00:12.3]} 61... Kg8 {[%clk 0:00:02.9]} 62. Kf2 {[%clk
0:00:12.6]} 62... Kf7 {[%clk 0:00:02.9]} 63. Ke2 {[%clk 0:00:13]} 63... Kf6
{[%clk 0:00:03.1]} 64. Kd2 {[%clk 0:00:12.6]} 64... Kg5 {[%clk 0:00:02.9]} 65.
Kc3 {[%clk 0:00:11]} 65... Kh4 {[%clk 0:00:02.1]} 66. Qh1+ {[%clk 0:00:10.5]}
66... Kg3 {[%clk 0:00:02.3]} 67. Qg1+ {[%clk 0:00:10.5]} 67... Kh4 {[%clk
0:00:02.5]} 68. Qf2+ {[%clk 0:00:10.3]} 1-0

[Event "Early-Titled-Tuesday-Blitz-October-10-2023"]
[Site "Chess.com"]
[Date "2023.10.10"]
[Round "11"]
[White "GalaxyRoman"]
[Black "NovozhilovSemen"]
[Result "1-0"]
[WhiteElo "2797"]
[BlackElo "2623"]
[TimeControl "180+1"]
[EndTime "10:06:10 PDT"]
[Termination "GalaxyRoman won by resignation"]

1. e4 {[%clk 0:02:51]} 1... c5 {[%clk 0:02:59.4]} 2. Nc3 {[%clk 0:02:50.9]} 2...
Nc6 {[%clk 0:02:59.5]} 3. f4 {[%clk 0:02:50]} 3... g6 {[%clk 0:02:57.1]} 4. Nf3
{[%clk 0:02:50.2]} 4... Bg7 {[%clk 0:02:57.3]} 5. Bb5 {[%clk 0:02:48.3]} 5...
Nd4 {[%clk 0:02:56.6]} 6. O-O {[%clk 0:02:48.7]} 6... a6 {[%clk 0:02:54]} 7. Bd3
{[%clk 0:02:47.2]} 7... e6 {[%clk 0:02:52.1]} 8. e5 {[%clk 0:02:45.3]} 8...
Nxf3+ {[%clk 0:02:50.1]} 9. Qxf3 {[%clk 0:02:46.2]} 9... d5 {[%clk 0:02:50.5]}
10. exd6 {[%clk 0:02:44.8]} 10... Qxd6 {[%clk 0:02:50.5]} 11. Ne4 {[%clk
0:02:45.3]} 11... Qc7 {[%clk 0:02:50.8]} 12. c3 {[%clk 0:02:43.1]} 12... Rb8
{[%clk 0:02:48.5]} 13. a4 {[%clk 0:02:32.3]} 13... Nf6 {[%clk 0:02:47.9]} 14. b3
{[%clk 0:02:23.9]} 14... O-O {[%clk 0:02:46.8]} 15. Ba3 {[%clk 0:02:19.4]} 15...
Nxe4 {[%clk 0:02:45.1]} 16. Bxe4 {[%clk 0:02:18.4]} 16... Rd8 {[%clk 0:02:38.5]}
17. Qf2 {[%clk 0:02:15.2]} 17... b6 {[%clk 0:02:37.5]} 18. a5 {[%clk 0:02:13.1]}
18... bxa5 {[%clk 0:02:33.2]} 19. Bxc5 {[%clk 0:02:12.1]} 19... Rxb3 {[%clk
0:02:31.4]} 20. Rfb1 {[%clk 0:02:06.5]} 20... a4 {[%clk 0:02:04.5]} 21. Bb6
{[%clk 0:01:57.8]} 21... Rxb6 {[%clk 0:01:48.4]} 22. Qxb6 {[%clk 0:01:55.2]}
22... Qxb6+ {[%clk 0:01:38.6]} 23. Rxb6 {[%clk 0:01:56.1]} 23... Bd7 {[%clk
0:01:26.1]} 24. Rxa6 {[%clk 0:01:34.6]} 24... Bf8 {[%clk 0:01:24]} 25. Bc6
{[%clk 0:01:22.7]} 25... Bxc6 {[%clk 0:01:21]} 26. Rxc6 {[%clk 0:01:23.6]} 26...
a3 {[%clk 0:01:21.7]} 27. d4 {[%clk 0:01:21.7]} 27... Rb8 {[%clk 0:01:21.6]} 28.
c4 {[%clk 0:01:14.1]} 28... Rb2 {[%clk 0:01:19.6]} 29. c5 {[%clk 0:00:54.1]}
29... a2 {[%clk 0:00:58.8]} 30. Rb6 {[%clk 0:00:53.5]} 30... Rd2 {[%clk
0:00:57.1]} 31. Ra6 {[%clk 0:00:35.4]} 31... Rxd4 {[%clk 0:00:55.3]} 32. c6
{[%clk 0:00:32]} 32... Bc5 {[%clk 0:00:46.2]} 33. Kh1 {[%clk 0:00:24.5]} 33...
Bd6 {[%clk 0:00:44.4]} 34. R6xa2 {[%clk 0:00:19.5]} 34... Rc4 {[%clk 0:00:38.5]}
35. Ra6 {[%clk 0:00:19.8]} 35... Bxf4 {[%clk 0:00:37]} 36. g3 {[%clk 0:00:20.4]}
36... Bc7 {[%clk 0:00:35.6]} 37. Rd1 {[%clk 0:00:20.8]} 37... h5 {[%clk
0:00:29.9]} 38. Rd7 {[%clk 0:00:20.8]} 38... Be5 {[%clk 0:00:29.8]} 39. Kg2
{[%clk 0:00:12.3]} 39... h4 {[%clk 0:00:28.8]} 40. gxh4 {[%clk 0:00:09]} 40...
Kg7 {[%clk 0:00:28.8]} 41. Raa7 {[%clk 0:00:06.2]} 41... g5 {[%clk 0:00:12.3]}
42. Rxf7+ {[%clk 0:00:05.1]} 42... Kg6 {[%clk 0:00:12.6]} 43. hxg5 {[%clk
0:00:05.1]} 43... Kxg5 {[%clk 0:00:12.4]} 44. c7 {[%clk 0:00:02]} 44... Kg4
{[%clk 0:00:10.2]} 45. h3+ {[%clk 0:00:02.5]} 45... Kh4 {[%clk 0:00:09.8]} 46.
Rh7+ {[%clk 0:00:03.1]} 46... Kg5 {[%clk 0:00:10]} 47. Kf3 {[%clk 0:00:03.8]}
47... Kf5 {[%clk 0:00:09.9]} 48. Rd7 {[%clk 0:00:04.2]} 48... Rc3+ {[%clk
0:00:09.9]} 49. Ke2 {[%clk 0:00:04.9]} 49... Kf6 {[%clk 0:00:09.5]} 50. h4
{[%clk 0:00:05.3]} 50... Rc4 {[%clk 0:00:09.5]} 51. h5 {[%clk 0:00:05.6]} 51...
Kg5 {[%clk 0:00:10.4]} 52. Rh7 {[%clk 0:00:05.2]} 52... Rc2+ {[%clk 0:00:08.3]}
53. Kd3 {[%clk 0:00:05.5]} 53... Rc3+ {[%clk 0:00:08.9]} 54. Kd2 {[%clk
0:00:06.1]} 54... Rc6 {[%clk 0:00:08.6]} 55. Rb7 {[%clk 0:00:03.6]} 55... Rc5
{[%clk 0:00:08.3]} 56. Kd3 {[%clk 0:00:04]} 56... Bd6 {[%clk 0:00:06.7]} 57. Kd4
{[%clk 0:00:03.7]} 57... Rc1 {[%clk 0:00:06.4]} 58. Ke4 {[%clk 0:00:02.3]} 58...
Bh2 {[%clk 0:00:06.4]} 59. h6 {[%clk 0:00:02]} 59... Kg6 {[%clk 0:00:06.6]} 60.
Rg7+ {[%clk 0:00:02.1]} 60... Kxh6 {[%clk 0:00:07.1]} 61. Rh7+ {[%clk
0:00:02.5]} 61... Kg6 {[%clk 0:00:03.5]} 62. Rxh2 {[%clk 0:00:03.1]} 62... Kf6
{[%clk 0:00:04.4]} 63. Rf2+ {[%clk 0:00:03.1]} 63... Kg6 {[%clk 0:00:04.8]} 64.
Rd2 {[%clk 0:00:03.7]} 64... Kf6 {[%clk 0:00:05.1]} 65. Rd8 {[%clk 0:00:04.4]}
65... Re1+ {[%clk 0:00:05]} 66. Kf3 {[%clk 0:00:04.5]} 66... Ke7 {[%clk
0:00:05.9]} 67. c8=Q+ {[%clk 0:00:04]} 1-0